Cogmind - Beta 15 @@@ ROGUE MODE // 2025.05.18 @ 11:04:07 Player: Cess183 Result: Destroyed by as-20633 with Assembled Blade Performance ------------- Evolutions (0) 0 Regions Visited (4) 800 Robots Destroyed (32) 160 Value Destroyed (525) 525 Prototype IDs (23) 460 Alien Tech Used (0) 0 Bonus (300) 300 TOTAL SCORE: 2245 Bonus ------- Aligned with FarCom 300 Cogmind --------- Core Integrity 0/250 Matter 292/300 Energy 250/250 System Corruption 1% Temperature Cool (28) Movement Core (500) Ox9 Location -9/Mines Parts ------- > --- POWER (1) -------- Ion Engine > --- PROPULSION (2) --- Flight Unit > --- UTILITY (2) ------ Large Storage Unit > --- WEAPON (2) ------- Heavy Assault Rifle > --- INVENTORY (15) --- Ion Engine Improved Ion Engine Superbattery (1500) High-capacity Matter Pod (200) Propulsion Shielding Weapon Shielding Heavy Assault Rifle Mining Laser Peak State ------------ > --- POWER ------------ Ion Engine > --- PROPULSION ------- Light Treads Light Treads > --- UTILITY ---------- Small Storage Unit Improved Terrain Scanner > --- WEAPON ----------- Heavy Assault Rifle Heavy Assault Rifle > --- INVENTORY -------- Ion Engine Ion Engine Medium Matter Pod Light Assault Rifle Light Assault Rifle Heavy Assault Rifle Heavy Assault Rifle Mining Laser [Rating: 12] Favorites ----------- Power Ion Engine Engine Ion Engine Propulsion Light Treads Treads Light Treads Flight Unit Flight Unit Utility Improved Terrain Scanner Device Improved Terrain Scanner Storage Small Storage Unit Weapon Heavy Assault Rifle Ballistic Gun Heavy Assault Rifle Launcher Grenade Launcher Build | -11 -10 -10 -10 -9 ------- Run | Yrd Mat Min Exi Min Slots Evolved . | . . . . . Power . | . . . . . Propulsion . | . . . . . Utility . | . . . . . Weapon . | . . . . . Parts Attached 18 | 7 4 4 1 2 Power 3 | 1 1 1 . . Engine 3 | 1 1 1 . . Core . | . . . . . Reactor . | . . . . . Propulsion 5 | 2 1 1 . 1 Treads 4 | 2 1 1 . . Leg . | . . . . . Wheel . | . . . . . Hover . | . . . . . Flight 1 | . . . . 1 Utility 3 | 2 . . 1 . Device 1 | 1 . . . . Storage 2 | 1 . . 1 . Processor . | . . . . . Hackware . | . . . . . Protection . | . . . . . Artifact . | . . . . . Weapon 7 | 2 2 2 . 1 Energy Gun . | . . . . . Energy Cannon . | . . . . . Ballistic Gun 6 | 2 2 1 . 1 Ballistic Cannon . | . . . . . Launcher 1 | . . 1 . . Special Weapon . | . . . . . Impact Weapon . | . . . . . Slashing Weapon . | . . . . . Piercing Weapon . | . . . . . Special Melee Weapon . | . . . . . Unidentified Prototypes . | . . . . . Parts Lost 7 | . . 3 . 4 Power 1 | . . 1 . . Propulsion 3 | . . 1 . 2 Utility 1 | . . . . 1 Weapon 2 | . . 1 . 1 Highest Loss Streak 2 | . . 2 . 2 To Critical Strikes . | . . . . . Average Backups 6 | 1 6 7 7 8 Power 1 | . 1 1 2 2 Propulsion . | . . . . . Utility 1 | . . 1 3 4 Weapon 3 | . 3 4 2 2 Tool/Special . | . . . . . Unused Backups 11 | . . 1 2 8 Power 2 | . . . . 2 Propulsion . | . . . . . Utility 6 | . . . 2 4 Weapon 3 | . . 1 . 2 Tool/Special . | . . . . . Average Slot Usage (%) 96 | . 95 97 100 84 Engine 14 | . 14 14 14 14 Treads 26 | . 28 25 28 17 Device 13 | . 14 14 14 1 Storage 14 | . 14 14 14 14 Ballistic Gun 26 | . 24 27 28 28 Peak Build Rating 12 | 9 12 12 11 11 Average Rating 10 | 6 10 11 10 8 On Entrance 8 | . 9 12 11 11 Naked Turns . | . . . . . Heaviest Build 30 | 13 17 17 30 29 Greatest Support 40 | 40 40 40 40 20 Greatest Overweight (x) 3 | 3 . . . 1 Average Overweight (x) . | . . . . 1 Largest Inventory Capacity 15 | 8 8 8 15 15 Average Capacity 9 | 7 8 8 12 15 Most Carried 9 | 2 8 8 8 9 Average Carried 6 | 1 6 7 7 8 Final Capacity 15 | 8 8 8 15 15 Final Carried 8 | 2 8 8 8 8 Class Distribution -------------------- 99% | Mutant Dominant Class ---------------- Mutant | -10/Materials Mutant | -10/Mines Mutant | -10/Exiles Mutant | -9/Mines Resources | -11 -10 -10 -10 -9 ----------- Run | Yrd Mat Min Exi Min Matter Collected 896 | 294 277 185 88 52 Remotely . | . . . . . Salvage Created 992 | 175 499 266 . 52 Parts 71 | 11 31 20 . 9 Haulers Intercepted 1 | . 1 . . . Recyclers Shooed 1 | . 1 . . . Parts Field Recycled . | . . . . . Retrieved Matter . | . . . . . Parts Self-Destructed . | . . . . . Prevented . | . . . . . Kills | -11 -10 -10 -10 -9 ------- Run | Yrd Mat Min Exi Min Combat Hostiles Destroyed 23 | . 9 10 . 4 Guns 23 | . 9 10 . 4 Classes Destroyed 8 | 3 4 1 . . Worker 1 | 1 . . . . Tunneler 3 | 3 . . . . Hauler 1 | . 1 . . . Recycler 3 | 1 2 . . . Watcher 1 | . 1 . . . Swarmer 15 | . 5 6 . 4 Grunt 6 | . 4 2 . . Sentry 2 | . . 2 . . Best Kill Streak 4 | 2 2 3 . 4 Combat Bots Only 4 | . 2 3 . 4 Max Kills in Single Turn 2 | 1 1 2 . 1 Gunslinging 1 | . . 1 . . Exploded . | . . . . . Melee . | . . . . . Uniques/NPCs Destroyed . | . . . . . Combat | -11 -10 -10 -10 -9 -------- Run | Yrd Mat Min Exi Min Hostile Shots Fired 165 | . 48 57 . 60 Missed 36 | . 8 15 . 13 Hits 129 | . 40 42 . 47 Melee 5 | . . . . 5 Projectile 124 | . 40 42 . 42 Critical Strikes 2 | . . 1 . 1 Damage Taken 1510 | . 396 544 . 570 Core 261 | . 24 88 . 149 Absorbed by Shields . | . . . . . Core Remaining (%) 100 | 100 . . . . Volleys Fired 96 | 12 50 19 . 15 Largest 2 | 2 2 2 . 2 Hottest 53 | 40 46 53 . 43 Shots Fired 179 | 24 87 38 . 30 Gun 177 | 24 87 36 . 30 Cannon . | . . . . . Launcher 2 | . . 2 . . Special . | . . . . . Kinetic 177 | 24 87 36 . 30 Thermal . | . . . . . Explosive 2 | . . 2 . . Electromagnetic . | . . . . . Robot Hit Streak 13 | 10 13 6 . 3 Robot Miss Streak 5 | 3 3 3 . 5 Penetration Max . | . . . . . Secondary Targets 5 | . 1 3 . 1 Max Gunslinging Chain 1 | . 1 1 . 1 Shots Hit Robots 111 | 16 61 22 . 12 Core Hits 50 | 9 20 14 . 7 Critical Kills . | . . . . . Critical Parts Destroyed . | . . . . . Critical Strikes . | . . . . . Melee Attacks . | . . . . . Impact . | . . . . . Slashing . | . . . . . Piercing . | . . . . . Sneak Attacks . | . . . . . Combat Hostiles . | . . . . . Follow-up Attacks . | . . . . . Damage Inflicted 1397 | 140 716 356 . 185 Guns 1351 | 140 711 315 . 185 Cannons . | . . . . . Explosions 41 | . . 41 . . Melee . | . . . . . Ramming 5 | . 5 . . . Kinetic 1351 | 140 711 315 . 185 Thermal . | . . . . . Explosive 41 | . . 41 . . Electromagnetic . | . . . . . Impact . | . . . . . Slashing . | . . . . . Piercing . | . . . . . Highest Corruption 1 | . 1 1 1 1 Average Corruption 1 | . 1 1 1 1 Corruption Purged . | . . . . . Corruption Blocked . | . . . . . Effects 18 | . 4 8 4 2 Message Errors 5 | . 2 3 . . Matter Fused 4 | . . 1 3 . Heat Flow Errors 5 | . . 2 1 2 Energy Discharges 2 | . 1 1 . . Parts Rejected 1 | . 1 . . . Data Loss (minor) 1 | . . 1 . . Overload Shots . | . . . . . Overflow Damage . | . . . . . Projectiles . | . . . . . Explosions . | . . . . . Melee . | . . . . . Knockbacks . | . . . . . Impact . | . . . . . Kinetic . | . . . . . Secondary . | . . . . . Self-Inflicted Damage 19 | . . 19 . . Shots 1 | . . 1 . . Rammed 2 | . 2 . . . Targets Rammed 2 | . 2 . . . Kicked . | . . . . . Crushed . | . . . . . Highest Temperature 256 | . 18 123 256 169 Average Temperature 41 | . 7 30 132 36 Received Heat Transfer 392 | . 144 168 . 80 Effects 1 | . . . 1 . Interference 1 | . . . 1 . Siege Activations . | . . . . . Martial Activations . | . . . . . Shielding Activations . | . . . . . Robots Disrupted . | . . . . . Combat Hostiles . | . . . . . Robots Corrupted . | . . . . . Combat Hostiles . | . . . . . Parts Fried . | . . . . . Impact Corruptions . | . . . . . Robots Melted . | . . . . . Combat Hostiles . | . . . . . Parts Melted . | . . . . . Heat Transferred . | . . . . . Parts Sabotaged . | . . . . . Parts Stolen . | . . . . . Parts Stripped . | . . . . . Power Chain Reactions . | . . . . . Alert | -11 -10 -10 -10 -9 ------- Run | Yrd Mat Min Exi Min Maximum Alert Level . | . . . . . Low Security (%) 100 | 100 100 100 . 100 Level 1 . | . . . . . Level 2 . | . . . . . Level 3 . | . . . . . Level 4 . | . . . . . Level 5 . | . . . . . High Security . | . . . . . Max Security . | . . . . . Peak Influence 70 | 5 67 70 . 60 Initial . | . . . . . Average 17 | . 19 19 . 27 Influence Increases 633 | 25 276 242 . 90 Destroy 0b10 Robot/C 460 | . 180 200 . 80 Destroy 0b10 Robot/NC 45 | 25 20 . . . Destroy Leader 84 | . 44 30 . 10 Successful Hack 2 | . 2 . . . Disable Machine 15 | . 15 . . . Destroy Structure 12 | . . 12 . . Lose Combat Pursuer 15 | . 15 . . . Influence Decreases 633 | 25 276 242 . 90 Time Decay 591 | 25 276 220 . 70 Lost Part 42 | . . 22 . 20 Squads Dispatched 2 | . 2 . . . Investigation 2 | . 2 . . . Extermination . | . . . . . Reinforcement . | . . . . . Assault . | . . . . . Garrison . | . . . . . Intercept . | . . . . . Searches Triggered . | . . . . . Construction Impeded . | . . . . . Haulers Reinforced . | . . . . . Active Scanning Responses . | . . . . . Cargo Convoy Interrupts . | . . . . . Stealth | -11 -10 -10 -10 -9 --------- Run | Yrd Mat Min Exi Min Distress Signals 2 | . 2 . . . Communications Jammed . | . . . . . Distress Signals . | . . . . . Times Spotted 42 | . 16 10 . 16 Peak Tracking Total 14 | . 5 3 . 14 Tactical Retreats 2 | . 1 . . 1 Traps | -11 -10 -10 -10 -9 ------- Run | Yrd Mat Min Exi Min Traps Triggered 2 | . 2 . . . Indirectly . | . . . . . Trap Hack Attempts . | . . . . . Triggered . | . . . . . Disarmed . | . . . . . Reprogrammed . | . . . . . Reused . | . . . . . Traps Extracted . | . . . . . Installed . | . . . . . Triggered . | . . . . . Machines | -11 -10 -10 -10 -9 ---------- Run | Yrd Mat Min Exi Min Machines Disabled 1 | . 1 . . . Max in Single Turn 1 | . 1 . . . Machines Repaired . | . . . . . Machines Dismantled . | . . . . . Machines Sabotaged . | . . . . . Overloaded Fab Kills . | . . . . . Hacking | -11 -10 -10 -10 -9 --------- Run | Yrd Mat Min Exi Min Machines Accessed 5 | . 4 . 1 . Terminals 2 | . 2 . . . Fabricators . | . . . . . Repair Stations 1 | . 1 . . . Recycling Units 1 | . 1 . . . Scanalyzers . | . . . . . Garrison Access . | . . . . . Total Hacks 10 | . 9 . 1 . Successful 8 | . 7 . 1 . Failed 2 | . 2 . . . Catastrophic . | . . . . . Database Lockouts . | . . . . . Manual 1 | . . . 1 . Terminals 2 | . 2 . . . Fabricators . | . . . . . Repair Stations 4 | . 4 . . . Recycling Units 3 | . 3 . . . Scanalyzers . | . . . . . Garrison Access . | . . . . . Terminal Hacks 3 | . 2 . 1 . Robot Analysis 1 | . 1 . . . Dispatch Records 1 | . 1 . . . Proto ID Catalog 1 | . . . 1 . Fabricator Hacks . | . . . . . Repair Station Hacks 2 | . 2 . . . Scan Component 2 | . 2 . . . Recycling Unit Hacks 3 | . 3 . . . Report Inventory 2 | . 2 . . . Retrieve Components 1 | . 1 . . . Scanalyzer . | . . . . . Garrison Access Hacks . | . . . . . Unauthorized Hacks . | . . . . . Terminals . | . . . . . Fabricators . | . . . . . Repair Stations . | . . . . . Recycling Units . | . . . . . Scanalyzers . | . . . . . Garrison Access . | . . . . . Data Cores Recovered . | . . . . . Used . | . . . . . Hacking Detections 2 | . 2 . . . Full Trace Events 1 | . 1 . . . Feedback Events . | . . . . . Feedback Blocked . | . . . . . Robot Schematics Acquired . | . . . . . Robots Built . | . . . . . Authchips . | . . . . . Time . | . . . . . Total Robot Build Rating . | . . . . . Part Schematics Acquired . | . . . . . Parts Built . | . . . . . Authchips . | . . . . . Time . | . . . . . Total Part Build Rating . | . . . . . Parts Repaired . | . . . . . Time . | . . . . . Parts Recycled . | . . . . . Recycled Matter . | . . . . . Retrieved Matter . | . . . . . Retrieved Components 9 | . 9 . . . Parts Scanalyzed . | . . . . . Part Schematics Acquired . | . . . . . Parts Damaged . | . . . . . Bothacking | -11 -10 -10 -10 -9 ------------ Run | Yrd Mat Min Exi Min Used RIF Installer . | . . . . . Robots Hacked . | . . . . . Non-combat . | . . . . . Combat . | . . . . . Robot Hacks Applied . | . . . . . Relay Couplers Released . | . . . . . Fabnet Peak Effective % . | . . . . . Robots Rewired . | . . . . . Allies Hacked . | . . . . . Hacks Repelled . | . . . . . Allies | -11 -10 -10 -10 -9 -------- Run | Yrd Mat Min Exi Min Total Allies . | . . . . . Largest Group . | . . . . . Highest-Rated Group . | . . . . . Highest-Rated Ally . | . . . . . Total Orders . | . . . . . Ally Attacks . | . . . . . Total Damage . | . . . . . Kills . | . . . . . Allies Corrupted . | . . . . . Allies Melted . | . . . . . Intel | -11 -10 -10 -10 -9 ------- Run | Yrd Mat Min Exi Min Active Infowar (turns) 2231 | 109 1024 899 199 . Terrain 2231 | 109 1024 899 199 . Robot Analysis Total 1 | . 1 . . . Derelict Logs Recovered 2 | . . 2 . . Drone Launches . | . . . . . Drone Recoveries . | . . . . . Exploration | -11 -10 -10 -10 -9 ------------- Run | Yrd Mat Min Exi Min Turns Passed 3214 | 253 1024 899 875 163 Spaces Moved 1779 | 134 542 510 545 48 Core 19 | 19 . . . . Treads 1760 | 115 542 510 545 48 Legs . | . . . . . Wheels . | . . . . . Hover . | . . . . . Flight . | . . . . . Fastest Speed 50 | 50 160 160 160 240 Average Speed 161 | 156 160 160 160 240 Slowest Speed 240 | 200 160 160 160 240 Overloaded Moves . | . . . . . Propulsion Burnouts . | . . . . . Robots Hopped . | . . . . . Potential Cave-ins . | . . . . . Cave-ins Triggered . | . . . . . Exploration Rate (%) 57 | 6 76 93 90 21 Regions Visited 4 Branch Regions 3 Pre-discovered Areas . | . . . . . Known Exits Taken . | . . . . . Unknown Exits Taken 4 | 1 1 1 1 . Scrap Searched 3 | . . 3 . . Spaces Dug . | . . . . . Terrain Destroyed 16 | . . 16 . . Melee . | . . . . . Projectile . | . . . . . AOE 16 | . . 16 . . Terrain Rammed . | . . . . . Walls Destroyed . | . . . . . Machines Disabled . | . . . . . Actions | -11 -10 -10 -10 -9 --------- Run | Yrd Mat Min Exi Min Total 1954 | 155 622 558 550 69 Wait 31 | . 14 15 . 2 Move 1775 | 133 541 509 544 48 Hop . | . . . . . Pick Up 17 | 3 5 6 2 1 Fast Attach 9 | 6 3 . . . Attach 6 | 1 . 4 . 1 Detach 3 | . 2 1 . . Swap 5 | . 2 1 1 1 Drop 10 | . 3 3 3 1 Fire 96 | 12 50 19 . 15 Melee . | . . . . . Ram . | . . . . . Kick . | . . . . . Crush 2 | . 2 . . . Escape Stasis . | . . . . . Rewire . | . . . . . Trap . | . . . . . Miscellaneous . | . . . . . Route ------- -11/Scrapyard -10/Materials (discovered 3 exits: [*Mat x2] / [*Min]) -10/Mines (discovered 4 exits: [*Mat x2] / *Exi / [*Sub]) -10/Exiles (discovered 2 exits: [*Min x2]) -9/Mines History --------- Turn | Location | Event 10 | -11/Scrapyard | Discovered new exit (range 16) 254 | -11/Scrapyard | Entered Materials 312 | -10/Materials | Build established: Mutant 450 | -10/Materials | Discovered new exit (range 11) 647 | -10/Materials | Discovered new exit (range 13) 1096 | -10/Materials | Discovered new exit (range 15) 1278 | -10/Materials | Entered Mines 1318 | -10/Mines | Found a hidden stash of uninstalled traps 1384 | -10/Mines | Discovered new exit (range 11) 1558 | -10/Mines | Discovered new exit (range 3) 1638 | -10/Mines | Learned Materials terminal intel 1809 | -10/Mines | Learned Materials emergency access door positions 1916 | -10/Mines | Discovered new exit (range 12) 2169 | -10/Mines | Deemed a non-threat by the Exiles lab entrance 2171 | -10/Mines | Discovered new exit (range 5) 2177 | -10/Mines | Entered Exiles 2217 | -10/Exiles | Met 8R-AWN 2243 | -10/Exiles | Met EX-HEX 2291 | -10/Exiles | Met EX-BIN 2310 | -10/Exiles | Aligned with FarCom system 2312 | -10/Exiles | Given EX-Vault access code 2363 | -10/Exiles | Opened EX-Vault 2378 | -10/Exiles | Found Superbattery 2413 | -10/Exiles | Warned to stay clear of 0b10 Research branches 2461 | -10/Exiles | Met EX-DEC 2581 | -10/Exiles | Visited The Gauntlet 2848 | -10/Exiles | Discovered new exit (range 12) 3030 | -10/Exiles | Discovered new exit (range 15) 3052 | -10/Exiles | Left Exiles lab with Superbattery 3052 | -10/Exiles | Entered Mines 3059 | -9/Mines | Met a Derelict bent on vengeance 3059 | -9/Mines | Core integrity fell below 50% 3193 | -9/Mines | Assembled infested the area 3207 | -9/Mines | Core integrity fell below 20% 3215 | -9/Mines | Destroyed by as-20633 with Assembled Blade Last Messages --------------- 03080_ S-10 Pest destroyed. 03088_ Acquired 12 matter. 03099_ Dropped Lgt. Assault Rifle. 03102_ Acquired Flight Unit. 03105_ Acquired 15 matter. 03110_ Acquired 5 matter. 03114_ Acquired 8 matter. 03131_ System corrupted: Heat flow error (+178). 03156_ T-07 Excavator is excavating. 03157_ U-05 Engineer lays Concrete. 03159_ U-05 Engineer builds a Wall. 03160_ T-07 Excavator is excavating. 03179_ System corrupted: Heat flow error (+189). 03193_ ALERT: Infestation in the mines, dispatching Demolisher response squad. 03206_ Critical hit (Burn: +80). 03207_ as-23756 sneak attacks. 03208_ T-07 Excavator destroyed. 03213_ Lgt. Assault Rifle destroyed. 03215_ Lgt. Treads destroyed. Map ----- +----------------------------------------------------+ | ????????????????????????? ????# ==[#???????????? | | ????????????????????????? ???# = #???????????? | | ????????????????????????? ???####*##???????????? | | ?????????????????????????# ??????# ###??????????? | | ????????????????????????## #?????# #??????????? | | ????????????????????????# ?????### #??????????? | | ????????????????????????# ???????# #???? ? #? | | ????????????????????????# ?????### ## | | ???????????????? ###?## ###### | | ??????????????? ## ##### #??? | | ??????????????? #????????????? | | ??????????????? #####????????????? | | ???????????????# #????????????????? | | ????????????????# ### ##???????????????? | | ?????????????????????## #???????????????? | | ??????????????????????## #???????????????? | | ???????????????????????## #???????????????? | | ????????????????????????### ##???????#???????? | | ??????????????????????????## ##????? ##??????? | | ??????????????????????????## ##### #??????? | | ??????????????????????????# #?????? | | ????????????????????####??# #?????? | | ???????????????????## #### #### #?????? | | ??????????????????## !## #???? ?????? | | ?????????????????## =%a ##?????? ? ?????? | | ?????????????????# a a a@ ##???????? ??????? | | ?????????? a a a ########??????????? ?????? | | ??????? #???????????????????????????? | | ???????? ## ###????????????????????????????? | | ???????? ????# ????????????????????????????????? | | ?????????????????????????????????????????????????? | | ?????????????????????????????????????????????????? | | ?????????????????????????????????????????????????? | | ?????????????????????????????????????????????????? | | ?????????????????????????????????????????????????? | | ?????????????????????????????????????????????????? | | ?????????????????????????????????????????????????? | | ?????????????????????????????????????????????????? | | ?????????????????????????????????????????????????? | | ?????????????????????????????????????????????????? | | ?????????????????????????????????????????????????? | | ?????????????????????????????????????????????????? | | ?????????????????????????????????????????????????? | | ?????????????????????????????????????????????????? | | ?????????????????????????????????????????????????? | | ?????????????????????????????????????????????????? | | ?????????????????????????????????????????????????? | | ?????????????????????????????????????????????????? | | ?????????????????????????????????????????????????? | | ?????????????????????????????????????????????????? | +----------------------------------------------------+ Best States ------------- Heat Dissipation 25 Energy Generation 10 Energy Capacity 250 Matter Stores 300 Matter Capacity 300 Sight Range 16 Terrain Scan Range 16 Terrain Scan Density 10 Evasion (%) 40 Recoil Reduction 2 Item Schematics ----------------- None Robot Schematics ------------------ None Fabricated ------------ Nothing Repaired ---------- Nothing Alien Tech Used ----------------- None Achievements -------------- None Challenges ------------ None Game ------ Seed RegenerativeFissionFlail Manual? 0 Play Time 00:21:29 Cumulative 15.4 hours Start 2025.05.18 @ 10:43:22 End 2025.05.18 @ 11:04:07 Sessions 1 Manual Loads 0 Difficulty Rogue Special Mode None Game No. 20 Rogue 20 Adventurer 0 Explorer 0 Win Type - Total 0 Types 0/0/0/0/0/0/0/0/0/0 Lore% 12 Gallery% 15 Achievement% 15 Wizard Run 0 Options --------- Layout 1 ASCII 0 Keyboard 1 Movement Vi Keybinds 0 Fullscreen 1 Font 24/Smallcaps Map View 50x35 Zoom Use 0% Tactical HUD 1 Map Filters NONE Filters NONE Steam 1 RUN: 35801087-ae77-4136-b368-a12b9347f26c